[Event "Early-Titled-Tuesday-Blitz-June-18-2024"]
[Site "Chess.com"]
[Date "2024.06.18"]
[Round "1"]
[White "DenishevM"]
[Black "TheAlienParty"]
[Result "1-0"]
[WhiteElo "2648"]
[BlackElo "2322"]
[TimeControl "180+1"]
[EndTime "8:01:58 PDT"]
[Termination "DenishevM won by resignation"]

1. d4 {[%clk 0:03:00.6]} 1... d5 {[%clk 0:02:58.7]} 2. Nf3 {[%clk 0:02:59.9]}
2... Nf6 {[%clk 0:02:58.4]} 3. c4 {[%clk 0:02:58.9]} 3... e6 {[%clk 0:02:58]} 4.
Nc3 {[%clk 0:02:59.1]} 4... Bb4 {[%clk 0:02:54.1]} 5. Bg5 {[%clk 0:02:58.8]}
5... h6 {[%clk 0:02:51.6]} 6. Bxf6 {[%clk 0:02:58.8]} 6... Qxf6 {[%clk
0:02:50.3]} 7. e3 {[%clk 0:02:59]} 7... O-O {[%clk 0:02:46.1]} 8. Rc1 {[%clk
0:02:58.3]} 8... b6 {[%clk 0:02:33.6]} 9. cxd5 {[%clk 0:02:57]} 9... exd5 {[%clk
0:02:32.9]} 10. Qb3 {[%clk 0:02:56.7]} 10... a5 {[%clk 0:02:31.3]} 11. a3 {[%clk
0:02:55.2]} 11... Bd6 {[%clk 0:02:30.9]} 12. Qxd5 {[%clk 0:02:50.2]} 12... c6
{[%clk 0:02:23.2]} 13. Qb3 {[%clk 0:02:47.6]} 13... b5 {[%clk 0:02:20.1]} 14.
Ne4 {[%clk 0:02:47.4]} 14... Qe7 {[%clk 0:02:19.5]} 15. Nxd6 {[%clk 0:02:47.1]}
15... Qxd6 {[%clk 0:02:19.8]} 16. Bd3 {[%clk 0:02:46.9]} 16... a4 {[%clk
0:02:19.8]} 17. Qc2 {[%clk 0:02:47]} 17... Bg4 {[%clk 0:02:19.3]} 18. Ne5 {[%clk
0:02:47.2]} 18... Bd7 {[%clk 0:02:18.4]} 19. Bh7+ {[%clk 0:02:46.2]} 19... Kh8
{[%clk 0:02:18.2]} 20. Be4 {[%clk 0:02:47.1]} 20... Rc8 {[%clk 0:02:17.3]} 21.
Nxf7+ {[%clk 0:02:46.5]} 1-0

[Event "Early-Titled-Tuesday-Blitz-June-18-2024"]
[Site "Chess.com"]
[Date "2024.06.18"]
[Round "1"]
[White "DvaHrasta"]
[Black "Shield12"]
[Result "1-0"]
[WhiteElo "2521"]
[BlackElo "2894"]
[TimeControl "180+1"]
[EndTime "8:02:05 PDT"]
[Termination "DvaHrasta won by resignation"]

1. c4 {[%clk 0:03:00.9]} 1... e5 {[%clk 0:02:59.7]} 2. g3 {[%clk 0:03:00.8]}
2... Nf6 {[%clk 0:02:59.9]} 3. Bg2 {[%clk 0:03:00.8]} 3... c6 {[%clk 0:03:00.6]}
4. d4 {[%clk 0:02:59.5]} 4... e4 {[%clk 0:03:00.5]} 5. d5 {[%clk 0:02:59.8]}
5... Bb4+ {[%clk 0:02:59.6]} 6. Bd2 {[%clk 0:02:57.6]} 6... Qe7 {[%clk
0:03:00.5]} 7. Nc3 {[%clk 0:02:53]} 7... cxd5 {[%clk 0:02:59.4]} 8. Nxd5 {[%clk
0:02:45.7]} 8... Nxd5 {[%clk 0:02:58]} 9. cxd5 {[%clk 0:02:45.5]} 9... O-O
{[%clk 0:02:53.7]} 10. a3 {[%clk 0:02:33.5]} 10... Bxd2+ {[%clk 0:02:53.4]} 11.
Qxd2 {[%clk 0:02:32.9]} 11... d6 {[%clk 0:02:54.3]} 12. f3 {[%clk 0:02:13.8]}
12... e3 {[%clk 0:02:49]} 13. Qb4 {[%clk 0:02:03.4]} 13... Na6 {[%clk
0:02:44.3]} 14. Qe4 {[%clk 0:02:00.2]} 14... f6 {[%clk 0:02:44.3]} 15. Qxe7
{[%clk 0:01:59.1]} 1-0

[Event "Early-Titled-Tuesday-Blitz-June-18-2024"]
[Site "Chess.com"]
[Date "2024.06.18"]
[Round "1"]
[White "el_sporco"]
[Black "Fore_Man"]
[Result "1-0"]
[WhiteElo "2574"]
[BlackElo "2159"]
[TimeControl "180+1"]
[EndTime "8:02:34 PDT"]
[Termination "el_sporco won by checkmate"]

1. e4 {[%clk 0:02:56.8]} 1... Nc6 {[%clk 0:02:57.4]} 2. Nf3 {[%clk 0:02:55.3]}
2... d5 {[%clk 0:02:55.3]} 3. exd5 {[%clk 0:02:56.2]} 3... Qxd5 {[%clk
0:02:55.4]} 4. Nc3 {[%clk 0:02:56.2]} 4... Qa5 {[%clk 0:02:56]} 5. d4 {[%clk
0:02:56.9]} 5... Bg4 {[%clk 0:02:56.4]} 6. Bb5 {[%clk 0:02:57.3]} 6... O-O-O
{[%clk 0:02:55.5]} 7. Bxc6 {[%clk 0:02:57.2]} 7... bxc6 {[%clk 0:02:56.4]} 8. h3
{[%clk 0:02:57.4]} 8... Bxf3 {[%clk 0:02:49.6]} 9. Qxf3 {[%clk 0:02:58.3]} 9...
Kb7 {[%clk 0:02:48.2]} 10. O-O {[%clk 0:02:55.9]} 10... Nf6 {[%clk 0:02:45.9]}
11. b4 {[%clk 0:02:52.9]} 11... Qb6 {[%clk 0:02:43]} 12. Na4 {[%clk 0:02:51.9]}
12... Qxd4 {[%clk 0:02:39.7]} 13. Nc5+ {[%clk 0:02:52.2]} 13... Kc8 {[%clk
0:02:36.6]} 14. Qxc6 {[%clk 0:02:51.1]} 14... Qd5 {[%clk 0:02:37.2]} 15. Qa6+
{[%clk 0:02:49.4]} 15... Kb8 {[%clk 0:02:37]} 16. Be3 {[%clk 0:02:46.9]} 16...
Rd6 {[%clk 0:02:31.6]} 17. Nd7+ {[%clk 0:01:55.6]} 17... Nxd7 {[%clk 0:02:26.5]}
18. Bxa7+ {[%clk 0:01:55.7]} 18... Ka8 {[%clk 0:02:25.1]} 19. Bb6+ {[%clk
0:01:55.2]} 19... Kb8 {[%clk 0:02:25.2]} 20. Qa7+ {[%clk 0:01:55.9]} 20... Kc8
{[%clk 0:02:25.5]} 21. Qxc7# {[%clk 0:01:56.6]} 1-0

[Event "Early-Titled-Tuesday-Blitz-June-18-2024"]
[Site "Chess.com"]
[Date "2024.06.18"]
[Round "1"]
[White "Kielinkei"]
[Black "temus_galaktionov"]
[Result "0-1"]
[WhiteElo "2483"]
[BlackElo "2850"]
[TimeControl "180+1"]
[EndTime "8:02:39 PDT"]
[Termination "temus_galaktionov won by resignation"]

1. c4 {[%clk 0:03:00.9]} 1... c6 {[%clk 0:03:00.9]} 2. Nf3 {[%clk 0:02:58.7]}
2... g6 {[%clk 0:03:01.8]} 3. d4 {[%clk 0:02:58]} 3... Bg7 {[%clk 0:03:02.7]} 4.
Nc3 {[%clk 0:02:58.1]} 4... d6 {[%clk 0:03:03.4]} 5. e4 {[%clk 0:02:57.8]} 5...
Nd7 {[%clk 0:03:04]} 6. Be3 {[%clk 0:02:57.2]} 6... e5 {[%clk 0:03:04.5]} 7. Be2
{[%clk 0:02:57.4]} 7... Ngf6 {[%clk 0:03:04.9]} 8. h3 {[%clk 0:02:57.5]} 8...
O-O {[%clk 0:03:05.2]} 9. O-O {[%clk 0:02:58]} 9... Qe7 {[%clk 0:03:05.5]} 10.
dxe5 {[%clk 0:02:53.4]} 10... dxe5 {[%clk 0:03:06.4]} 11. Qc2 {[%clk 0:02:49.7]}
11... Nh5 {[%clk 0:03:06.1]} 12. Rad1 {[%clk 0:02:27.7]} 12... Nf4 {[%clk
0:03:04]} 13. b3 {[%clk 0:02:16.2]} 13... Nc5 {[%clk 0:03:00]} 14. Rfe1 {[%clk
0:01:57]} 14... Nxe2+ {[%clk 0:02:58.4]} 15. Qxe2 {[%clk 0:01:49.7]} 15... a5
{[%clk 0:02:55.9]} 16. Bd4 {[%clk 0:01:15.4]} 16... exd4 {[%clk 0:02:53.6]} 0-1

[Event "Early-Titled-Tuesday-Blitz-June-18-2024"]
[Site "Chess.com"]
[Date "2024.06.18"]
[Round "1"]
[White "Niteshch"]
[Black "Lennis93"]
[Result "1-0"]
[WhiteElo "2330"]
[BlackElo "2616"]
[TimeControl "180+1"]
[EndTime "8:02:57 PDT"]
[Termination "Niteshch won by resignation"]

1. e4 {[%clk 0:02:57.3]} 1... a6 {[%clk 0:02:50.6]} 2. d4 {[%clk 0:02:55.3]}
2... b5 {[%clk 0:02:49.2]} 3. Nf3 {[%clk 0:02:52.4]} 3... e6 {[%clk 0:02:49.3]}
4. Bd3 {[%clk 0:02:49.7]} 4... Bb7 {[%clk 0:02:49.7]} 5. O-O {[%clk 0:02:49.8]}
5... c5 {[%clk 0:02:49.8]} 6. dxc5 {[%clk 0:02:40.8]} 6... Bxc5 {[%clk
0:02:49.2]} 7. Bg5 {[%clk 0:02:34.7]} 7... Ne7 {[%clk 0:02:48]} 8. e5 {[%clk
0:02:25.4]} 8... d6 {[%clk 0:02:37.3]} 9. exd6 {[%clk 0:02:17.4]} 9... Qxd6
{[%clk 0:02:38.2]} 10. Nc3 {[%clk 0:02:14.6]} 10... Nd7 {[%clk 0:02:34.2]} 11.
a3 {[%clk 0:02:03.3]} 11... h6 {[%clk 0:02:32.7]} 12. Bh4 {[%clk 0:01:55.3]}
12... Nf6 {[%clk 0:02:30.9]} 13. b4 {[%clk 0:01:53.6]} 13... Bb6 {[%clk
0:02:29.8]} 14. Bxb5+ {[%clk 0:01:51.3]} 14... axb5 {[%clk 0:02:26]} 15. Qxd6
{[%clk 0:01:50.8]} 15... Bd8 {[%clk 0:02:21.9]} 16. Ne5 {[%clk 0:01:45.5]} 16...
O-O {[%clk 0:02:06.7]} 17. Bxf6 {[%clk 0:01:45.1]} 17... gxf6 {[%clk 0:02:07.6]}
18. Nd7 {[%clk 0:01:45.2]} 1-0

[Event "Early-Titled-Tuesday-Blitz-June-18-2024"]
[Site "Chess.com"]
[Date "2024.06.18"]
[Round "1"]
[White "SujanaLohani"]
[Black "ChessShop"]
[Result "0-1"]
[WhiteElo "2245"]
[BlackElo "2605"]
[TimeControl "180+1"]
[EndTime "8:03:33 PDT"]
[Termination "ChessShop won by resignation"]

1. e4 {[%clk 0:02:33.6]} 1... e5 {[%clk 0:02:57.8]} 2. Nf3 {[%clk 0:02:33.9]}
2... d6 {[%clk 0:02:58.2]} 3. d4 {[%clk 0:02:32.9]} 3... exd4 {[%clk 0:02:59.1]}
4. Nxd4 {[%clk 0:02:31.5]} 4... Nf6 {[%clk 0:02:59.6]} 5. Nc3 {[%clk 0:02:30.8]}
5... Be7 {[%clk 0:03:00.1]} 6. h3 {[%clk 0:02:29.6]} 6... O-O {[%clk 0:03:00.3]}
7. g4 {[%clk 0:02:29]} 7... h6 {[%clk 0:03:00]} 8. Bg2 {[%clk 0:02:28.7]} 8...
Re8 {[%clk 0:03:00.1]} 9. O-O {[%clk 0:02:29]} 9... Nbd7 {[%clk 0:03:00.2]} 10.
f4 {[%clk 0:02:28.1]} 10... Nf8 {[%clk 0:03:00]} 11. g5 {[%clk 0:02:27.8]} 11...
N6h7 {[%clk 0:02:45.6]} 12. gxh6 {[%clk 0:02:24.6]} 12... g6 {[%clk 0:02:43.3]}
13. Nd5 {[%clk 0:02:19.9]} 13... Bh4 {[%clk 0:02:43.1]} 14. f5 {[%clk
0:02:18.8]} 14... c6 {[%clk 0:02:42.6]} 15. Nf4 {[%clk 0:02:15.8]} 15... Bg5
{[%clk 0:02:36.4]} 16. fxg6 {[%clk 0:02:15.4]} 16... fxg6 {[%clk 0:02:34]} 17.
Qf3 {[%clk 0:02:08.9]} 17... Qe7 {[%clk 0:02:28.1]} 18. Qg3 {[%clk 0:01:50.7]}
18... Kh8 {[%clk 0:02:23.2]} 19. h4 {[%clk 0:01:43.5]} 19... Bxh6 {[%clk
0:02:22.3]} 20. Nxg6+ {[%clk 0:01:42.4]} 20... Nxg6 {[%clk 0:02:22.5]} 21. Qxg6
{[%clk 0:01:37.2]} 21... Bxc1 {[%clk 0:02:14.2]} 22. Rf7 {[%clk 0:01:35.9]}
22... Be3+ {[%clk 0:02:14.3]} 23. Kf1 {[%clk 0:01:30]} 23... Qxf7+ {[%clk
0:02:13.9]} 24. Qxf7 {[%clk 0:01:29.5]} 24... Rf8 {[%clk 0:02:14.5]} 25. Qxf8+
{[%clk 0:01:29.3]} 25... Nxf8 {[%clk 0:02:14.4]} 0-1

[Event "Early-Titled-Tuesday-Blitz-June-18-2024"]
[Site "Chess.com"]
[Date "2024.06.18"]
[Round "1"]
[White "JunjiCol"]
[Black "HamedWafa4"]
[Result "0-1"]
[WhiteElo "2362"]
[BlackElo "2673"]
[TimeControl "180+1"]
[EndTime "8:03:36 PDT"]
[Termination "HamedWafa4 won by resignation"]

1. e4 {[%clk 0:02:59.3]} 1... c5 {[%clk 0:02:57.8]} 2. Nf3 {[%clk 0:02:56.1]}
2... a6 {[%clk 0:02:57.7]} 3. c3 {[%clk 0:02:55.1]} 3... e6 {[%clk 0:02:55.4]}
4. d4 {[%clk 0:02:54.8]} 4... cxd4 {[%clk 0:02:55.3]} 5. cxd4 {[%clk 0:02:55.1]}
5... d5 {[%clk 0:02:55.7]} 6. e5 {[%clk 0:02:52.5]} 6... Bd7 {[%clk 0:02:55.5]}
7. Nc3 {[%clk 0:02:51.6]} 7... Ne7 {[%clk 0:02:54.8]} 8. Bg5 {[%clk 0:02:50.5]}
8... Nbc6 {[%clk 0:02:53.7]} 9. Bd3 {[%clk 0:02:49.3]} 9... h6 {[%clk
0:02:53.8]} 10. Bh4 {[%clk 0:02:49.5]} 10... g5 {[%clk 0:02:53.5]} 11. Bg3
{[%clk 0:02:49.6]} 11... Nf5 {[%clk 0:02:52.9]} 12. Bxf5 {[%clk 0:02:49.1]}
12... exf5 {[%clk 0:02:53.8]} 13. Nxd5 {[%clk 0:02:48.6]} 13... Qa5+ {[%clk
0:02:52.4]} 14. Nc3 {[%clk 0:02:48.8]} 14... f4 {[%clk 0:02:52.8]} 15. d5 {[%clk
0:02:46]} 15... Ne7 {[%clk 0:02:52.7]} 16. e6 {[%clk 0:02:25.6]} 16... fxe6
{[%clk 0:02:48.3]} 17. Ne5 {[%clk 0:02:25.4]} 17... fxg3 {[%clk 0:02:44.1]} 18.
Qh5+ {[%clk 0:02:17.9]} 18... Kd8 {[%clk 0:02:42.7]} 19. Nf7+ {[%clk 0:02:17.9]}
19... Kc7 {[%clk 0:02:35.3]} 20. d6+ {[%clk 0:02:16.8]} 20... Kb6 {[%clk
0:02:33.8]} 21. dxe7 {[%clk 0:02:10.8]} 21... Bxe7 {[%clk 0:02:32.5]} 22. Nxh8
{[%clk 0:02:09.4]} 22... gxf2+ {[%clk 0:02:32.9]} 23. Kxf2 {[%clk 0:02:05.7]}
23... Qc5+ {[%clk 0:02:25.7]} 24. Ke2 {[%clk 0:02:01.9]} 24... Rxh8 {[%clk
0:02:18.1]} 25. Qf3 {[%clk 0:01:57.4]} 25... Bb5+ {[%clk 0:02:18.1]} 26. Nxb5
{[%clk 0:01:54.2]} 26... Qc2+ {[%clk 0:02:18.5]} 27. Kf1 {[%clk 0:01:51.6]}
27... Rf8 {[%clk 0:02:17.5]} 28. Nd4 {[%clk 0:01:45.3]} 28... Rxf3+ {[%clk
0:02:15.2]} 29. Nxf3 {[%clk 0:01:45.5]} 29... Bc5 {[%clk 0:02:13.9]} 30. Ke1
{[%clk 0:01:44.9]} 30... Qxg2 {[%clk 0:02:05.1]} 31. Rf1 {[%clk 0:01:44]} 31...
Bb4+ {[%clk 0:02:05.5]} 0-1

[Event "Early-Titled-Tuesday-Blitz-June-18-2024"]
[Site "Chess.com"]
[Date "2024.06.18"]
[Round "1"]
[White "GMBenjaminBok"]
[Black "komogro"]
[Result "1-0"]
[WhiteElo "3001"]
[BlackElo "2535"]
[TimeControl "180+1"]
[EndTime "8:03:44 PDT"]
[Termination "GMBenjaminBok won by resignation"]

1. d4 {[%clk 0:03:00.9]} 1... Nf6 {[%clk 0:02:19.7]} 2. c4 {[%clk 0:02:52.3]}
2... g6 {[%clk 0:02:17.6]} 3. g3 {[%clk 0:02:51.9]} 3... Bg7 {[%clk 0:02:18]} 4.
Bg2 {[%clk 0:02:51.3]} 4... O-O {[%clk 0:02:18.6]} 5. Nc3 {[%clk 0:02:51.6]}
5... d6 {[%clk 0:02:19]} 6. Nf3 {[%clk 0:02:52.1]} 6... Nbd7 {[%clk 0:02:19.6]}
7. O-O {[%clk 0:02:51.9]} 7... c6 {[%clk 0:02:20.4]} 8. e4 {[%clk 0:02:52.1]}
8... e5 {[%clk 0:02:20.9]} 9. Be3 {[%clk 0:02:51.4]} 9... a5 {[%clk 0:02:19.6]}
10. h3 {[%clk 0:02:50]} 10... exd4 {[%clk 0:02:18.7]} 11. Nxd4 {[%clk
0:02:50.9]} 11... Re8 {[%clk 0:02:18.3]} 12. Qc2 {[%clk 0:02:50.5]} 12... Nc5
{[%clk 0:02:12.8]} 13. b3 {[%clk 0:02:37.1]} 13... Nfxe4 {[%clk 0:01:54.2]} 14.
Nxe4 {[%clk 0:02:35.9]} 14... Bf5 {[%clk 0:01:52.7]} 15. Nxf5 {[%clk 0:02:30.9]}
15... Bxa1 {[%clk 0:01:44.2]} 16. Nfxd6 {[%clk 0:02:17.5]} 16... Nxe4 {[%clk
0:00:58.4]} 17. Nxe8 {[%clk 0:02:15.6]} 1-0

[Event "Early-Titled-Tuesday-Blitz-June-18-2024"]
[Site "Chess.com"]
[Date "2024.06.18"]
[Round "1"]
[White "MasterKroket"]
[Black "nihalsarin"]
[Result "0-1"]
[WhiteElo "2546"]
[BlackElo "3178"]
[TimeControl "180+1"]
[EndTime "8:03:53 PDT"]
[Termination "nihalsarin won by resignation"]

1. e4 {[%clk 0:03:00.9]} 1... c6 {[%clk 0:02:58.1]} 2. d4 {[%clk 0:03:00.6]}
2... d5 {[%clk 0:02:58.8]} 3. Nc3 {[%clk 0:03:00.3]} 3... dxe4 {[%clk
0:02:58.9]} 4. Nxe4 {[%clk 0:03:01.2]} 4... Nd7 {[%clk 0:02:59.7]} 5. Ng5 {[%clk
0:03:00.4]} 5... Ngf6 {[%clk 0:02:54.1]} 6. Bc4 {[%clk 0:03:00.2]} 6... e6
{[%clk 0:02:54.2]} 7. c3 {[%clk 0:02:53.6]} 7... h6 {[%clk 0:02:52.5]} 8. N5f3
{[%clk 0:02:53.1]} 8... Bd6 {[%clk 0:02:52.9]} 9. Ne2 {[%clk 0:02:50.1]} 9...
O-O {[%clk 0:02:51.3]} 10. O-O {[%clk 0:02:48.7]} 10... Qc7 {[%clk 0:02:49.7]}
11. Ng3 {[%clk 0:02:43.1]} 11... b5 {[%clk 0:02:49.9]} 12. Bb3 {[%clk
0:02:41.8]} 12... c5 {[%clk 0:02:43]} 13. Be3 {[%clk 0:02:36.2]} 13... Bb7
{[%clk 0:02:40.9]} 14. a4 {[%clk 0:02:32.9]} 14... a6 {[%clk 0:02:38.1]} 15. Re1
{[%clk 0:02:32]} 15... c4 {[%clk 0:02:32.9]} 16. Bc2 {[%clk 0:02:31.6]} 16... b4
{[%clk 0:02:33.2]} 17. cxb4 {[%clk 0:02:24.1]} 17... Bxb4 {[%clk 0:02:32.8]} 18.
Bd2 {[%clk 0:02:09.9]} 18... Bxf3 {[%clk 0:02:32]} 19. gxf3 {[%clk 0:02:10.1]}
19... Bxd2 {[%clk 0:02:30.9]} 20. Qxd2 {[%clk 0:02:10]} 20... Rab8 {[%clk
0:02:31.8]} 21. Rac1 {[%clk 0:02:00.7]} 21... Nd5 {[%clk 0:02:31]} 22. Bd3
{[%clk 0:01:50.6]} 22... Rb4 {[%clk 0:02:23.1]} 23. b3 {[%clk 0:01:45.4]} 23...
c3 {[%clk 0:02:21]} 24. Qc2 {[%clk 0:01:36.7]} 24... Rxd4 {[%clk 0:02:20.7]} 25.
Be4 {[%clk 0:01:31.4]} 25... Rd2 {[%clk 0:02:13.5]} 26. Qb1 {[%clk 0:01:31.2]}
26... N7f6 {[%clk 0:02:09.3]} 27. Red1 {[%clk 0:01:26.9]} 27... Qb6 {[%clk
0:01:59.7]} 28. Rxd2 {[%clk 0:01:22.6]} 28... cxd2 {[%clk 0:02:00.6]} 29. Rd1
{[%clk 0:01:23]} 0-1

[Event "Early-Titled-Tuesday-Blitz-June-18-2024"]
[Site "Chess.com"]
[Date "2024.06.18"]
[Round "1"]
[White "Athanasios2"]
[Black "milovichalex"]
[Result "1-0"]
[WhiteElo "2741"]
[BlackElo "2417"]
[TimeControl "180+1"]
[EndTime "8:03:54 PDT"]
[Termination "Athanasios2 won by resignation"]

1. e4 {[%clk 0:03:00.9]} 1... e5 {[%clk 0:02:59.7]} 2. Nc3 {[%clk 0:03:01]} 2...
Nc6 {[%clk 0:02:59.9]} 3. Bc4 {[%clk 0:03:00.8]} 3... Bc5 {[%clk 0:02:59.6]} 4.
d3 {[%clk 0:02:58.3]} 4... Nf6 {[%clk 0:02:59.4]} 5. a3 {[%clk 0:02:57.5]} 5...
a6 {[%clk 0:02:59.1]} 6. h3 {[%clk 0:02:56.8]} 6... h6 {[%clk 0:02:59]} 7. Nf3
{[%clk 0:02:56]} 7... d6 {[%clk 0:02:59.1]} 8. O-O {[%clk 0:02:55.8]} 8... O-O
{[%clk 0:02:59.1]} 9. Be3 {[%clk 0:02:55.7]} 9... Be6 {[%clk 0:02:58.3]} 10. Nd2
{[%clk 0:02:44.6]} 10... b5 {[%clk 0:02:52.2]} 11. Bb3 {[%clk 0:02:40.2]} 11...
Nd4 {[%clk 0:02:52.1]} 12. Bxe6 {[%clk 0:02:36.7]} 12... Nxe6 {[%clk 0:02:51.9]}
13. Nb3 {[%clk 0:02:34.9]} 13... Ba7 {[%clk 0:02:49.3]} 14. d4 {[%clk
0:02:33.7]} 14... exd4 {[%clk 0:02:48.5]} 15. Nxd4 {[%clk 0:02:34.6]} 15... Nxd4
{[%clk 0:02:48.7]} 16. Bxd4 {[%clk 0:02:35.5]} 16... Bxd4 {[%clk 0:02:49]} 17.
Qxd4 {[%clk 0:02:36.4]} 17... Qe7 {[%clk 0:02:48.6]} 18. Rad1 {[%clk 0:02:35.2]}
18... Rfe8 {[%clk 0:02:36.6]} 19. Rfe1 {[%clk 0:02:34.4]} 19... Nd7 {[%clk
0:02:27.3]} 20. Nd5 {[%clk 0:02:31.2]} 20... Qd8 {[%clk 0:02:27.4]} 21. f4
{[%clk 0:02:31.2]} 21... Nc5 {[%clk 0:02:03.7]} 22. Nc3 {[%clk 0:02:29.3]} 22...
Ne6 {[%clk 0:02:02.6]} 23. Qf2 {[%clk 0:02:29.2]} 23... f5 {[%clk 0:02:01.1]}
24. e5 {[%clk 0:02:26.4]} 24... Nc5 {[%clk 0:01:50.8]} 25. Qf3 {[%clk
0:02:25.6]} 25... Qe7 {[%clk 0:01:42.6]} 26. exd6 {[%clk 0:02:21.5]} 26... Qxe1+
{[%clk 0:01:38.5]} 27. Rxe1 {[%clk 0:02:22.4]} 27... Rxe1+ {[%clk 0:01:38.5]}
28. Kh2 {[%clk 0:02:22.4]} 28... Ne4 {[%clk 0:01:30]} 29. Nxe4 {[%clk
0:02:08.6]} 29... fxe4 {[%clk 0:01:29.3]} 30. Qb3+ {[%clk 0:02:08.1]} 30... Kf8
{[%clk 0:01:28.3]} 31. dxc7 {[%clk 0:02:08.1]} 31... Rc8 {[%clk 0:01:28.2]} 32.
Qb4+ {[%clk 0:02:08.2]} 32... Ke8 {[%clk 0:01:28]} 33. Qxe1 {[%clk 0:02:08.6]}
33... Rxc7 {[%clk 0:01:27.7]} 34. Qxe4+ {[%clk 0:02:08.9]} 1-0

[Event "Early-Titled-Tuesday-Blitz-June-18-2024"]
[Site "Chess.com"]
[Date "2024.06.18"]
[Round "1"]
[White "NovakCabarkapa"]
[Black "jaramsdal"]
[Result "1-0"]
[WhiteElo "2737"]
[BlackElo "2414"]
[TimeControl "180+1"]
[EndTime "8:04:00 PDT"]
[Termination "NovakCabarkapa won by resignation"]

1. d4 {[%clk 0:03:00.9]} 1... Nf6 {[%clk 0:02:58.6]} 2. Nc3 {[%clk 0:03:00.8]}
2... d5 {[%clk 0:02:58]} 3. Bf4 {[%clk 0:03:01.1]} 3... c5 {[%clk 0:02:54.5]} 4.
e3 {[%clk 0:03:00.4]} 4... e6 {[%clk 0:02:49.2]} 5. Nb5 {[%clk 0:02:59.8]} 5...
Na6 {[%clk 0:02:48.9]} 6. c3 {[%clk 0:03:00.1]} 6... Be7 {[%clk 0:02:38.2]} 7.
a4 {[%clk 0:02:59.8]} 7... O-O {[%clk 0:02:37.8]} 8. Bd3 {[%clk 0:02:59.5]} 8...
Bd7 {[%clk 0:02:21.7]} 9. Nf3 {[%clk 0:02:58.8]} 9... Rc8 {[%clk 0:02:19.1]} 10.
Ne5 {[%clk 0:02:58.2]} 10... Be8 {[%clk 0:02:15.4]} 11. Nxa7 {[%clk 0:02:56.9]}
11... Ra8 {[%clk 0:02:12.7]} 12. Nb5 {[%clk 0:02:56.8]} 12... Nc7 {[%clk
0:02:07.8]} 13. Nxc7 {[%clk 0:02:51.7]} 13... Qxc7 {[%clk 0:02:08.7]} 14. Ng6
{[%clk 0:02:49.1]} 14... Bd6 {[%clk 0:02:02.4]} 15. Bxd6 {[%clk 0:02:48.2]}
15... Qxd6 {[%clk 0:02:03.3]} 16. Nxf8 {[%clk 0:02:48.4]} 16... Kxf8 {[%clk
0:02:04.2]} 17. O-O {[%clk 0:02:48.5]} 17... Qb6 {[%clk 0:01:56.1]} 18. Qc1
{[%clk 0:02:44.3]} 18... Rxa4 {[%clk 0:01:51.6]} 19. Rxa4 {[%clk 0:02:44.3]}
19... Bxa4 {[%clk 0:01:52.5]} 20. Qa1 {[%clk 0:02:44.9]} 20... Be8 {[%clk
0:01:49.1]} 21. Qa3 {[%clk 0:02:44.8]} 21... Nd7 {[%clk 0:01:47.5]} 22. e4
{[%clk 0:02:43.6]} 22... Kg8 {[%clk 0:01:44.8]} 23. exd5 {[%clk 0:02:43.5]}
23... exd5 {[%clk 0:01:45.7]} 24. Re1 {[%clk 0:02:44]} 24... Kf8 {[%clk
0:01:37.1]} 25. h3 {[%clk 0:02:41.3]} 25... h6 {[%clk 0:01:36.8]} 26. Bf5 {[%clk
0:02:40.4]} 26... Qa6 {[%clk 0:01:25]} 27. Qxa6 {[%clk 0:02:39.5]} 27... bxa6
{[%clk 0:01:25]} 28. Bxd7 {[%clk 0:02:40.2]} 28... Bxd7 {[%clk 0:01:25.3]} 29.
dxc5 {[%clk 0:02:41.1]} 29... Bc6 {[%clk 0:01:24.5]} 30. f3 {[%clk 0:02:40.3]}
30... f5 {[%clk 0:01:23.5]} 31. Kf2 {[%clk 0:02:40.8]} 31... f4 {[%clk
0:01:24.4]} 32. Ra1 {[%clk 0:02:38.6]} 32... Bb5 {[%clk 0:01:24]} 33. Rd1 {[%clk
0:02:38.5]} 33... Bc4 {[%clk 0:01:23.7]} 34. h4 {[%clk 0:02:39]} 34... Ke7
{[%clk 0:01:23.1]} 35. Rd4 {[%clk 0:02:35.4]} 35... g5 {[%clk 0:01:22.4]} 36.
hxg5 {[%clk 0:02:36.3]} 36... hxg5 {[%clk 0:01:23.1]} 37. Rd1 {[%clk 0:02:34.2]}
37... Kd7 {[%clk 0:01:22.9]} 38. Rh1 {[%clk 0:02:34.9]} 38... Kc6 {[%clk
0:01:19]} 39. Rh5 {[%clk 0:02:35]} 39... Kxc5 {[%clk 0:01:19.9]} 40. Rxg5 {[%clk
0:02:35.5]} 40... Bd3 {[%clk 0:01:14.3]} 41. Rg4 {[%clk 0:02:34.7]} 41... Kc4
{[%clk 0:01:14.2]} 42. Rxf4+ {[%clk 0:02:35.1]} 42... Kb3 {[%clk 0:01:15.1]} 43.
Rb4+ {[%clk 0:02:35.2]} 43... Kc2 {[%clk 0:01:15.7]} 44. g4 {[%clk 0:02:34.9]}
1-0

[Event "Early-Titled-Tuesday-Blitz-June-18-2024"]
[Site "Chess.com"]
[Date "2024.06.18"]
[Round "1"]
[White "twofoxniel"]
[Black "ALRS-SPS"]
[Result "1-0"]
[WhiteElo "2697"]
[BlackElo "2383"]
[TimeControl "180+1"]
[EndTime "8:04:00 PDT"]
[Termination "twofoxniel won by resignation"]

1. e4 {[%clk 0:02:58.1]} 1... c5 {[%clk 0:02:55.3]} 2. c3 {[%clk 0:02:57.5]}
2... d5 {[%clk 0:02:54]} 3. exd5 {[%clk 0:02:56.9]} 3... Qxd5 {[%clk 0:02:54.6]}
4. d4 {[%clk 0:02:57.8]} 4... Nf6 {[%clk 0:02:52]} 5. Nf3 {[%clk 0:02:57.7]}
5... e6 {[%clk 0:02:48]} 6. Bd3 {[%clk 0:02:56.8]} 6... Nc6 {[%clk 0:02:41.8]}
7. O-O {[%clk 0:02:56.2]} 7... cxd4 {[%clk 0:02:40.7]} 8. cxd4 {[%clk
0:02:56.1]} 8... Be7 {[%clk 0:02:40.3]} 9. Nc3 {[%clk 0:02:56]} 9... Qd8 {[%clk
0:02:40.3]} 10. Qe2 {[%clk 0:02:55.3]} 10... O-O {[%clk 0:02:39.7]} 11. Rd1
{[%clk 0:02:54.7]} 11... b6 {[%clk 0:02:36.3]} 12. Bg5 {[%clk 0:02:49.1]} 12...
Bb7 {[%clk 0:02:35.3]} 13. a3 {[%clk 0:02:45.6]} 13... h6 {[%clk 0:02:34.8]} 14.
Bh4 {[%clk 0:02:44]} 14... Rc8 {[%clk 0:02:34.5]} 15. Rac1 {[%clk 0:02:43.3]}
15... Nd5 {[%clk 0:02:29.4]} 16. Bg3 {[%clk 0:02:31.9]} 16... Bf6 {[%clk
0:02:22.9]} 17. Bb1 {[%clk 0:02:25.7]} 17... Na5 {[%clk 0:02:09.8]} 18. Ne5
{[%clk 0:02:22.5]} 18... Nb3 {[%clk 0:02:00.7]} 19. Qc2 {[%clk 0:02:19.9]} 19...
g6 {[%clk 0:01:54.3]} 20. Qxb3 {[%clk 0:02:19.6]} 20... Ba6 {[%clk 0:01:40.3]}
21. Nxd5 {[%clk 0:02:16.2]} 21... exd5 {[%clk 0:01:38.3]} 22. Rxc8 {[%clk
0:02:11]} 22... Qxc8 {[%clk 0:01:36.8]} 23. Qxd5 {[%clk 0:02:00.3]} 23... Bb7
{[%clk 0:01:32.6]} 24. Qd7 {[%clk 0:01:54.5]} 24... Qa8 {[%clk 0:01:30.9]} 25.
Nxf7 {[%clk 0:01:47.2]} 25... Rxf7 {[%clk 0:01:29.2]} 26. Ba2 {[%clk 0:01:46.5]}
1-0